bitfinex/quotes_ETHUSD_20250220
["timestamp","ask_amount","ask_price","bid_price","bid_amount"]
[1740067665269,3.67518,2721.0,2720.7,0.72305292]
[1740067665469,3.67532,2720.9,2720.7,0.72305292]
[1740067665635,3.67538,2720.8,2720.7,0.72305292]
[1740067666056,3.67518,2721.0,2720.7,0.72305292]
[1740067666269,3.67538,2720.8,2720.7,0.72305292]
[1740067667678,3.67527,2720.9,2720.7,0.72305292]
[1740067667872,3.67538,2720.8,2720.7,0.72305292]
[1740067668174,3.67527,2720.9,2720.7,0.72305292]
[1740067668588,7.35061,2720.9,2720.7,0.72305292]
[1740067668873,3.67527,2720.9,2720.7,0.72305292]
[1740067669044,3.67538,2720.8,2720.7,0.72305292]
[1740067669961,7.35007,2721.1,2720.7,0.72305292]
[1740067670170,3.67481,2721.3,2720.7,0.72305292]
[1740067670355,3.67461,2721.4,2720.8,4.45902]
[1740067670558,3.6814,2721.9,2720.8,4.45902]
[1740067670559,0.8244,2722.0,2720.9,0.51820729]
[1740067670858,3.67484,2721.3,2720.9,0.51820729]
[1740067671048,3.67491,2721.2,2720.9,0.51820729]
[1740067671253,0.8244,2722.0,2720.8,0.7837]
[1740067671450,3.67525,2720.9,2720.8,0.7837]
[1740067671674,3.67525,2720.9,2720.5,0.8312]
[1740067671875,3.67495,2721.2,2720.5,0.8312]
[1740067672064,3.6748,2721.3,2720.8,0.71981364]
[1740067672370,3.67489,2721.2,2720.8,1.159343]
[1740067672580,3.67499,2721.1,2720.8,1.159343]
[1740067672955,3.6748,2721.3,2720.8,1.159343]
[1740067673155,3.67486,2721.2,2720.8,1.159343]
[1740067673356,3.67502,2721.1,2720.8,1.159343]
[1740067673649,3.67505,2721.1,2720.8,1.159343]
[1740067673855,3.67436,2721.6,2720.8,1.159343]
[1740067674083,3.67499,2721.1,2720.8,1.159343]
[1740067674285,3.6748,2721.3,2720.8,1.159343]
[1740067674487,3.67493,2721.2,2720.8,1.159343]
[1740067674790,3.67502,2721.1,2720.8,1.159343]
[1740067675087,3.67505,2721.1,2720.8,0.71981364]
[1740067675389,3.67525,2720.9,2720.8,0.71981364]
[1740067679086,3.67525,2720.9,2720.2,6.67618]
[1740067679087,7.35142,2720.6,2720.2,0.291]
[1740067679287,3.6757,2720.6,2720.2,0.291]
[1740067679460,3.6757,2720.6,2720.2,0.70062]
[1740067680192,3.67514,2721.0,2720.6,0.8332]
[1740067680394,3.68946,2721.5,2720.6,0.8332]
[1740067680719,3.67471,2721.3,2720.8,3.0]
[1740067680862,3.67406,2721.8,2720.9,0.667545]
[1740067681198,3.67403,2721.8,2721.1,3.67498]
[1740067681399,0.0075,2722.3,2721.1,3.67498]
[1740067681400,0.759,2722.3,2721.1,3.92325096]
[1740067681561,3.674,2721.9,2721.3,0.55]
[1740067681757,7.34802,2721.9,2721.4,3.0]
[1740067682082,3.67413,2721.8,2721.3,0.55]
[1740067682256,3.67413,2721.8,2721.4,0.43766]
[1740067682662,3.67424,2721.7,2721.4,0.43766]
[1740067682861,3.67399,2721.9,2721.4,0.43766]
[1740067683067,3.67417,2721.7,2721.6,0.73824391]
[1740067683421,4.48568,2721.7,2720.9,0.7577]
[1740067683710,0.8115,2721.7,2720.9,0.7577]
[1740067683998,3.67473,2721.3,2720.9,0.7577]
[1740067684164,7.34954,2721.3,2720.9,0.7577]
[1740067684366,3.67473,2721.3,2720.9,1.55721906]
[1740067684566,3.67491,2721.2,2720.9,0.7577]
[1740067684877,3.67472,2721.3,2721.1,0.72415302]
[1740067685076,0.8115,2721.7,2721.1,0.72415302]
[1740067685077,4.48576,2721.7,2721.1,4.39913302]
[1740067685276,0.8115,2721.7,2721.1,0.72415302]
[1740067685582,3.6743,2721.6,2721.1,0.72415302]
[1740067685771,3.67403,2721.8,2721.1,1.23985132]
[1740067685979,3.67447,2721.5,2721.1,0.72415302]
[1740067686292,3.67478,2721.3,2721.1,0.72415302]
[1740067687112,0.7947,2722.0,2721.1,0.72415302]
[1740067687317,3.67424,2721.7,2721.1,4.39906302]
[1740067687596,3.67397,2721.9,2721.3,3.67459]
[1740067687800,3.67397,2721.9,2721.4,0.7514]
[1740067687971,3.67465,2721.4,2721.1,1.50535302]
[1740067688166,3.67446,2721.5,2721.1,1.50535302]
[1740067688563,3.67363,2722.1,2721.1,5.18022302]
[1740067688763,4.409326,2722.0,2721.3,3.67464]
[1740067689002,3.67411,2721.8,2721.3,3.67464]
[1740067689197,3.67424,2721.7,2721.1,5.99825532]
[1740067689386,3.67409,2721.8,2721.1,2.32337532]
[1740067689585,3.67384,2722.0,2721.1,1.50535302]
[1740067689766,3.67398,2721.9,2721.3,3.67462]
[1740067689967,3.67376,2722.1,2721.6,0.805]
[1740067690183,3.67349,2722.2,2721.6,0.805]
[1740067690380,3.67392,2721.9,2721.6,0.805]
[1740067690587,3.67403,2721.8,2721.7,0.73305594]
[1740067691981,3.67441,2721.6,2721.3,1.101]
[1740067692212,3.67413,2721.8,2721.3,1.101]
[1740067692395,3.67397,2721.9,2721.3,4.101]
[1740067692573,3.67441,2721.6,2721.3,4.101]
[1740067692768,0.7612,2722.3,2721.3,0.81]
[1740067692769,0.7687,2722.3,2721.3,0.81]
[1740067692995,3.6748,2721.3,2721.0,1.1089]
[1740067693703,3.67424,2721.7,2721.1,3.6749]
[1740067693875,3.67435,2721.6,2721.1,3.6749]
[1740067694069,3.67435,2721.6,2721.2,0.72503706]
[1740067694475,3.67451,2721.5,2721.2,0.72503706]
[1740067694683,3.67462,2721.4,2721.2,0.72503706]
[1740067694886,3.67442,2721.6,2721.2,0.72503706]
[1740067695102,3.67409,2721.8,2721.3,3.67468]
[1740067695328,3.67409,2721.8,2721.2,1.20843077]
[1740067695475,3.67424,2721.7,2721.2,1.20843077]
[1740067695675,7.34848,2721.7,2721.2,1.20843077]
[1740067695920,3.67424,2721.7,2721.3,0.48833708]
[1740067696146,3.67398,2721.9,2721.3,0.48833708]
[1740067696355,3.67413,2721.8,2721.4,0.8295]
[1740067696732,7.34829,2721.8,2721.4,0.8295]
[1740067696895,3.67422,2721.7,2721.4,0.8295]
[1740067697101,3.67422,2721.7,2721.4,1.70127141]
[1740067698352,0.8105,2722.4,2721.4,1.70127141]
[1740067698654,3.67358,2722.2,2721.5,3.67444]
[1740067698803,3.67377,2722.0,2721.4,1.70127141]
[1740067699000,3.67363,2722.1,2721.5,3.67437]
[1740067699224,3.67363,2722.1,2721.6,0.90500814]
[1740067699500,3.67373,2722.1,2721.6,4.57930814]
[1740067699739,3.67388,2722.0,2721.9,0.7220352]
[1740067700321,3.67376,2722.0,2721.9,0.7220352]
[1740067700558,3.67365,2722.1,2721.9,0.7220352]
[1740067700758,0.8105,2722.4,2721.9,0.7220352]
[1740067700915,3.67342,2722.3,2722.0,0.8008]
[1740067701119,3.67355,2722.2,2722.0,0.8008]
[1740067701418,3.67322,2722.4,2722.0,0.8008]
[1740067701633,3.67342,2722.3,2722.0,1.32048052]
[1740067701838,3.67356,2722.2,2721.9,0.7220352]
[1740067702040,3.67376,2722.0,2721.9,0.7220352]
[1740067703926,3.67392,2721.9,2721.7,0.7937]
[1740067704118,3.67374,2722.1,2721.7,0.7937]
[1740067704314,3.6731,2722.5,2721.7,0.7937]
[1740067704515,3.6739,2721.9,2721.8,0.73076625]
[1740067705348,3.67444,2721.5,2721.3,0.7977]
[1740067705754,3.67444,2721.5,2721.4,0.73804891]
[1740067706247,3.67475,2721.3,2720.9,3.7977]
[1740067706416,3.67444,2721.5,2720.9,0.7977]
[1740067706619,3.67482,2721.3,2721.0,0.476398]
[1740067706819,3.67471,2721.3,2721.2,0.73746041]
[1740067708123,3.67459,2721.4,2721.2,0.73746041]
[1740067708461,3.67463,2721.4,2721.2,0.73746041]
[1740067708755,3.13103228,2721.8,2721.2,0.73746041]
[1740067708957,7.34931,2721.4,2721.2,0.73746041]
[1740067709331,3.67462,2721.4,2721.2,0.73746041]
[1740067709650,3.67471,2721.3,2721.2,0.73746041]
[1740067711739,3.67471,2721.3,2720.9,0.7977]
[1740067712054,3.67501,2721.1,2720.9,0.7977]
[1740067712259,3.67501,2721.1,2721.0,0.74335709]
[1740067712436,3.67482,2721.3,2721.0,0.74335709]
[1740067712437,3.67486,2721.2,2721.0,0.74335709]
[1740067712638,3.67498,2721.1,2720.6,0.8135]
[1740067712828,3.67512,2721.0,2720.6,1.262426]
[1740067713029,3.67499,2721.1,2720.7,3.67545]
[1740067713231,0.7571,2721.5,2720.9,0.72518156]
[1740067713430,3.67436,2721.6,2721.0,3.67504]
[1740067713648,3.67444,2721.5,2720.9,0.72518156]
[1740067713836,3.67464,2721.4,2720.9,4.84046872]
[1740067714040,3.91763228,2721.8,2720.9,1.16522872]
[1740067714365,3.67455,2721.5,2721.0,4.44865]
[1740067714657,3.67455,2721.5,2721.0,0.7736]
[1740067714870,3.67467,2721.4,2721.0,0.7736]
[1740067715171,3.67467,2721.4,2720.9,0.72518156]
[1740067715172,3.91763228,2721.8,2720.9,0.72518156]
[1740067715482,0.7872,2722.2,2721.5,3.67436]
[1740067715789,3.67405,2721.8,2721.3,1.08]
[1740067716012,3.67457,2721.5,2721.3,0.291]
[1740067716291,3.67363,2722.1,2721.4,3.67451]
[1740067716588,3.6743,2721.6,2721.3,0.291]
[1740067716899,3.6742,2721.7,2721.3,0.291]
[1740067717095,3.67372,2722.1,2721.3,0.291]
[1740067717392,0.36806,2722.4,2721.7,0.8206]
[1740067717570,3.67403,2721.8,2721.7,0.8206]
[1740067717736,3.67457,2721.5,2721.3,0.291]
[1740067717938,3.67412,2721.8,2721.3,0.291]
[1740067718254,3.67417,2721.7,2721.3,0.291]
[1740067718451,3.67431,2721.6,2721.4,0.72945174]
[1740067719363,3.67412,2721.8,2721.4,0.72945174]
[1740067719773,3.67437,2721.6,2721.4,0.72945174]
[1740067719981,3.67412,2721.8,2721.4,0.72945174]
[1740067720177,3.93323228,2722.2,2721.4,0.72945174]
[1740067720490,3.67383,2722.0,2721.6,0.7979]
[1740067720775,3.67415,2721.8,2721.6,0.7979]
[1740067721159,3.67417,2721.7,2721.4,1.02045174]
[1740067721880,3.67407,2721.8,2721.4,4.69501174]
[1740067722078,3.67377,2722.0,2721.4,5.54407191]
[1740067722295,3.6735,2722.2,2721.4,1.86951191]
[1740067722451,0.7586,2722.5,2721.9,3.67377]
[1740067722650,3.67341,2722.3,2721.8,3.674]
[1740067722852,3.6735,2722.2,2721.7,3.67408]
[1740067723086,3.67372,2722.1,2721.5,11.16638]
[1740067723254,3.67391,2721.9,2721.5,7.49203]
[1740067723451,3.67363,2722.1,2721.6,3.0]
[1740067723655,3.67388,2722.0,2721.5,2.03641317]
[1740067724370,7.34722,2722.2,2721.7,3.67409]
[1740067724580,3.6736,2722.2,2721.7,3.0]
[1740067724762,3.88963228,2722.5,2721.9,0.74550382]
[1740067725080,3.67316,2722.5,2722.0,3.67374]
[1740067725287,3.67335,2722.4,2722.0,0.827]
[1740067725596,3.67331,2722.4,2722.0,0.827]
[1740067725793,3.67307,2722.6,2722.0,0.827]
[1740067725999,4.4407,2722.8,2722.1,3.67356]
[1740067726221,3.6733,2722.4,2722.0,0.827]
[1740067727022,3.6731,2722.5,2722.0,0.827]
[1740067727218,3.67307,2722.6,2722.0,0.827]
[1740067727419,3.67318,2722.5,2722.0,4.50074]
[1740067727625,3.67309,2722.5,2722.0,4.50074]
[1740067727922,0.768,2722.8,2722.0,1.71902638]
[1740067728120,3.67305,2722.6,2722.0,4.5007]
[1740067728290,3.67283,2722.7,2722.0,0.827]
[1740067728491,3.6732,2722.5,2722.0,4.50074]
[1740067728688,0.734398,2723.3,2722.1,0.55]
[1740067728892,3.67186,2723.5,2722.9,3.67247]
[1740067729120,3.67155,2723.7,2723.0,3.67232]
[1740067729330,3.67171,2723.6,2723.2,0.74270809]
[1740067729504,4.4349,2724.0,2723.3,3.67189]
[1740067729705,3.67148,2723.7,2723.2,3.74270809]
[1740067729933,7.34278,2723.8,2723.2,7.41477809]
[1740067730228,1.99142051,2724.3,2723.3,1.10869781]
[1740067730433,3.67091,2724.2,2723.5,3.67164]
[1740067730642,0.37637124,2724.3,2723.3,0.55]
[1740067730842,0.37637124,2724.3,2723.7,0.55]
[1740067731050,3.67071,2724.3,2723.8,0.291]
[1740067731458,3.67079,2724.3,2723.8,0.291]
[1740067731635,3.6704,2724.5,2723.9,4.912316]
[1740067731838,3.67024,2724.7,2724.1,3.6709]
[1740067732156,4.4738,2724.9,2723.9,1.241146]
[1740067732157,3.67066,2724.3,2723.9,1.241146]
[1740067732481,3.66999,2724.8,2724.0,0.73698024]
[1740067732482,3.67095,2724.1,2724.0,0.73698024]
[1740067732678,3.67095,2724.1,2723.7,0.291]
[1740067732980,3.6712,2723.9,2723.6,0.814]
[1740067733139,3.6712,2723.9,2723.8,0.74095041]
[1740067733326,3.6707,2724.3,2723.8,0.74095041]
[1740067733522,3.67081,2724.2,2723.8,1.26360245]
[1740067733761,3.67081,2724.2,2723.8,0.74095041]
[1740067734058,3.67107,2724.0,2723.8,0.74095041]
[1740067734260,3.67092,2724.2,2723.8,0.74095041]
[1740067734559,3.6711,2724.0,2723.8,0.74095041]
[1740067734861,3.6712,2723.9,2723.8,0.74095041]
[1740067735862,3.67147,2723.7,2723.6,0.814]
[1740067736250,3.67136,2723.8,2723.6,0.814]
[1740067736432,3.6712,2723.9,2723.6,0.814]
[1740067736644,0.775,2724.7,2723.6,1.53554071]
[1740067736829,3.67018,2724.7,2724.1,3.67086]
[1740067737028,3.67039,2724.5,2724.0,0.7786]
[1740067737392,3.67041,2724.5,2724.0,3.7786]
[1740067737539,3.67093,2724.1,2724.0,0.7786]
[1740067737873,3.67062,2724.4,2724.0,0.7786]
[1740067738167,3.6705,2724.5,2724.0,4.223578]
[1740067738374,3.67053,2724.4,2724.0,4.223578]
[1740067738973,3.67053,2724.4,2724.0,1.223578]
[1740067739201,3.67003,2724.8,2724.0,1.52017938]
[1740067739202,3.67093,2724.1,2724.0,1.52017938]
[1740067739336,3.67061,2724.4,2724.0,1.52017938]
[1740067739545,3.67067,2724.3,2724.0,1.52017938]
[1740067740179,3.0,2724.9,2724.0,1.52017938]
[1740067740354,3.67093,2724.1,2724.0,0.74157938]
[1740067740745,3.67085,2724.2,2724.0,0.74157938]
[1740067741143,3.67,2724.8,2724.1,4.97433]
[1740067741478,3.67048,2724.5,2724.1,4.3034]
[1740067741685,3.67041,2724.5,2724.2,0.87159294]
[1740067741848,7.34088,2724.5,2724.1,4.3034]
[1740067742176,3.67041,2724.5,2724.1,4.3034]
[1740067742376,3.6708,2724.2,2724.1,0.7534]
[1740067743077,3.67065,2724.4,2724.1,0.7534]
[1740067743385,7.34127,2724.4,2724.1,0.7534]
[1740067743586,3.6707,2724.3,2724.1,0.7534]
[1740067743952,3.6708,2724.2,2724.1,0.7534]
[1740067744656,3.67093,2724.1,2724.0,0.74157938]
[1740067745056,3.6708,2724.2,2724.0,0.74157938]
[1740067745282,3.66999,2724.8,2724.0,1.37128199]
[1740067745586,3.6707,2724.3,2724.0,0.74157938]
[1740067745958,3.4207,2724.3,2724.0,0.74157938]
[1740067746152,3.67093,2724.1,2724.0,0.74157938]
[1740067746759,3.6712,2723.9,2723.8,1.46844674]
[1740067747279,4.4677,2723.9,2723.8,1.46844674]
[1740067747453,5.281578,2723.9,2723.8,1.46844674]
[1740067747809,0.7965,2723.7,2722.5,1.0997]
[1740067748013,0.7965,2723.7,2723.0,0.74013369]
[1740067748014,3.67231,2723.1,2723.0,0.74013369]
[1740067749092,3.67168,2723.6,2723.0,4.41243369]
[1740067749253,0.7965,2723.7,2723.0,4.41243369]
[1740067749254,0.7965,2723.7,2723.1,0.8043]
[1740067749461,3.67196,2723.4,2723.1,0.8043]
[1740067749687,3.67215,2723.2,2723.1,0.8043]
[1740067750155,3.67215,2723.2,2723.0,0.74013369]
[1740067750156,3.67228,2723.1,2723.0,0.74013369]
[1740067750359,3.67276,2722.8,2722.5,0.7566]
[1740067750582,3.67284,2722.7,2722.5,0.7566]
[1740067750993,3.67295,2722.6,2722.5,0.71700665]
[1740067751287,3.67283,2722.7,2722.5,0.71700665]
[1740067751496,3.67295,2722.6,2722.5,0.71700665]
[1740067752502,3.6736,2722.2,2721.9,2.38715967]
[1740067752998,3.67283,2722.7,2722.2,3.67349]
[1740067752999,3.67284,2722.7,2722.2,3.67349]
[1740067753199,3.67285,2722.7,2722.2,3.67349]
[1740067753401,0.8273,2723.3,2722.2,4.4589]
[1740067753573,3.67306,2722.6,2722.3,0.50089]
[1740067753770,3.13019547,2723.2,2722.2,0.7855]
[1740067753974,3.67336,2722.3,2722.2,0.7855]
[1740067754200,3.67336,2722.3,2722.1,0.74090687]
[1740067754706,3.67349,2722.2,2722.1,0.74090687]
[1740067756598,3.67271,2722.8,2722.2,0.8185]
[1740067756786,3.67236,2723.1,2722.6,3.67291]
[1740067756988,0.7888,2723.5,2722.7,0.8185]
[1740067757305,3.67262,2722.9,2722.7,0.8185]
[1740067757687,3.67262,2722.9,2722.6,0.291]
[1740067758295,3.67208,2723.3,2722.7,0.7588]
[1740067758496,0.7804,2723.8,2723.1,3.67221]
[1740067758703,3.67168,2723.6,2723.2,1.126021]
[1740067758907,3.67189,2723.4,2723.2,1.126021]
[1740067759081,3.67189,2723.4,2723.2,0.7588]
[1740067759282,7.3434,2723.6,2723.2,0.7588]
[1740067759484,4.45137,2724.1,2723.2,0.7588]
[1740067759485,3.67198,2723.4,2723.2,0.7588]
[1740067759703,7.34397,2723.4,2723.2,0.7588]
[1740067759880,3.67201,2723.3,2723.2,0.7588]
[1740067760080,3.67198,2723.4,2723.2,0.7588]
[1740067760622,3.67168,2723.6,2723.3,0.55]
[1740067760825,3.67121,2723.9,2723.6,0.8176]
[1740067761146,0.8245,2724.9,2723.7,3.55]
[1740067761312,3.67057,2724.4,2723.8,0.803911]
[1740067761493,3.67087,2724.2,2723.8,0.803911]
[1740067761694,7.34178,2724.2,2723.8,0.803911]
[1740067761888,3.67064,2724.4,2723.9,0.8183]
[1740067762088,0.7524,2725.3,2724.0,0.55]
[1740067762290,3.67051,2724.5,2724.0,0.55]
[1740067762488,3.67075,2724.3,2723.9,4.4026501]
[1740067763214,7.34151,2724.3,2723.9,1.4026501]
[1740067763413,3.67087,2724.2,2723.9,1.4026501]
[1740067763596,3.67096,2724.1,2724.0,0.291]
[1740067763794,0.7669,2724.7,2724.0,0.291]
[1740067764117,3.67088,2724.2,2724.0,0.291]
[1740067764303,3.67093,2724.1,2724.0,0.291]
[1740067765507,3.67093,2724.1,2724.0,1.02932853]
[1740067765911,3.67057,2724.4,2723.6,0.7521]
[1740067766214,3.67147,2723.7,2723.3,0.7578]
[1740067766416,3.67147,2723.7,2723.5,0.73288883]
[1740067766618,3.67128,2723.9,2723.5,0.73288883]
[1740067766788,3.67156,2723.7,2723.5,0.73288883]
[1740067766989,3.67161,2723.6,2723.5,0.73288883]
[1740067769209,0.7776,2724.1,2723.5,0.73288883]
[1740067769404,3.67102,2724.1,2723.5,0.73288883]
[1740067769592,3.67125,2723.9,2723.5,0.73288883]
[1740067769790,7.34258,2723.9,2723.5,0.73288883]
[1740067770031,3.67125,2723.9,2723.5,0.73288883]
[1740067770347,3.67093,2724.1,2723.6,3.67158]
[1740067770545,3.67093,2724.1,2723.5,5.28806771]
[1740067770748,3.67109,2724.0,2723.5,5.28806771]
[1740067770912,3.67093,2724.1,2723.6,3.67158]
[1740067771101,7.34196,2724.1,2723.6,3.67158]
[1740067771303,3.67093,2724.1,2723.7,0.8014]
[1740067771831,3.67134,2723.8,2723.7,0.8014]
[1740067772039,3.67134,2723.8,2723.5,0.73288883]
[1740067772394,3.67122,2723.9,2723.5,0.73288883]
[1740067772599,3.67141,2723.8,2723.5,0.73288883]
[1740067772799,3.67122,2723.9,2723.5,0.73288883]
[1740067772996,3.67089,2724.2,2723.6,3.67157]
[1740067773204,3.67062,2724.4,2723.8,0.7762]
[1740067773935,0.7842,2724.7,2723.8,0.7762]
[1740067774136,3.67068,2724.3,2723.8,4.44745]
[1740067774304,0.7842,2724.7,2723.8,0.7762]
[1740067774643,3.67067,2724.3,2723.9,3.0]
[1740067774931,3.67067,2724.3,2724.0,0.291]
[1740067775235,3.67715,2725.1,2724.0,0.291]
[1740067775236,0.1514846,2725.2,2724.2,0.55]
[1740067775408,3.67019,2724.7,2724.2,4.22078]
[1740067775732,3.8209946,2725.2,2724.2,4.22078]
[1740067775733,3.66972,2725.0,2724.4,3.67046]
[1740067775937,3.66962,2725.1,2724.4,3.67046]
[1740067776147,3.66976,2725.0,2724.5,4.42432]
[1740067776299,0.1514846,2725.2,2724.5,0.754]
[1740067776300,3.66996,2724.9,2724.5,0.754]
[1740067776499,0.1514846,2725.2,2724.5,0.754]
[1740067776500,3.67026,2724.6,2724.5,0.754]
[1740067776834,3.67026,2724.6,2724.4,0.291]
[1740067777128,3.67039,2724.5,2724.4,0.291]
[1740067777337,3.67032,2724.6,2724.4,0.291]
[1740067777717,3.66993,2724.9,2724.4,0.291]
[1740067777915,3.6701,2724.8,2724.4,0.291]
[1740067778224,0.1514846,2725.2,2724.4,0.5481037]
[1740067778423,3.6701,2724.8,2724.4,0.5481037]
[1740067778835,3.67036,2724.6,2724.4,0.5481037]
[1740067779039,3.67053,2724.4,2724.3,0.291]
[1740067779334,3.67039,2724.6,2724.3,0.291]
[1740067779638,3.6702,2724.7,2724.3,0.291]
[1740067779939,3.67048,2724.5,2724.3,0.291]
[1740067780827,3.6703,2724.6,2724.3,0.291]
[1740067781028,3.67021,2724.7,2724.3,0.291]
[1740067781232,0.1514846,2725.2,2724.4,0.55]
[1740067781433,3.66965,2725.1,2724.7,0.7769]
[1740067781735,3.66975,2725.0,2724.7,0.7769]
[1740067781938,3.66965,2725.1,2724.7,0.7769]
[1740067782513,0.1514846,2725.2,2724.8,0.55]
[1740067782714,0.1514846,2725.2,2725.1,5.04779]
[1740067783019,0.1514846,2725.2,2725.1,5.33879]
[1740067783351,0.1514846,2725.2,2725.1,1.6692]
[1740067783646,0.1514846,2725.2,2725.1,5.33879]
[1740067783846,0.1514846,2725.2,2725.1,2.570049]
[1740067784727,0.1514846,2725.2,2725.1,6.239639]
[1740067785125,0.1514846,2725.2,2725.1,9.239639]
[1740067786648,3.66767,2726.6,2726.1,0.7702]
[1740067786815,3.66766,2726.6,2726.2,0.29]
[1740067787019,3.66792,2726.4,2726.2,0.29]
[1740067787220,3.66797,2726.3,2726.2,0.29]
[1740067787939,0.733589,2726.3,2725.5,0.8193]
[1740067788249,3.66851,2725.9,2725.8,0.74991639]
[1740067788613,0.7526,2726.6,2725.8,0.74991639]
[1740067789162,7.33685,2726.0,2725.8,0.74991639]
[1740067789464,3.66801,2726.3,2725.8,0.74991639]
[1740067789671,0.826,2727.0,2726.0,0.8137]
[1740067789867,3.66824,2726.1,2725.8,0.74991639]
[1740067790047,0.826,2726.4,2725.8,0.74991639]
[1740067790225,3.66851,2725.9,2725.8,0.74991639]
[1740067791329,3.66848,2726.0,2725.8,0.74991639]
[1740067791659,3.66797,2726.3,2725.8,0.74991639]
[1740067791827,3.66851,2725.9,2725.8,0.74991639]
[1740067792155,3.6685,2726.0,2725.8,0.74991639]
[1740067792357,3.66851,2725.9,2725.8,0.74991639]
[1740067792583,3.66841,2726.0,2725.8,0.74991639]
[1740067792755,0.0075,2726.6,2725.8,0.74991639]
[1740067792756,3.66819,2726.2,2725.8,0.74991639]
[1740067793084,3.66851,2726.0,2725.8,0.74991639]
[1740067793281,3.66851,2725.9,2725.8,0.74991639]
[1740067793773,3.66891,2725.6,2725.5,0.98285071]
[1740067795530,3.66891,2725.6,2725.5,0.54639152]
[1740067795829,3.66891,2725.6,2725.5,0.34095824]
[1740067796029,4.47814,2725.6,2725.5,0.34095824]
[1740067798175,3.66945,2725.2,2725.1,0.61387421]
[1740067798459,3.66916,2725.5,2725.2,0.8167]
[1740067798760,3.66945,2725.2,2725.1,0.34095824]
[1740067798960,3.66939,2725.3,2725.1,0.53860874]
[1740067799367,3.66914,2725.5,2725.1,0.53860874]
[1740067799682,3.66925,2725.4,2725.1,0.53860874]
[1740067799963,3.66925,2725.4,2725.2,0.88734976]
[1740067800263,3.669,2725.6,2725.2,1.7947779]
[1740067800481,3.66871,2725.8,2725.2,1.7947779]
[1740067800653,3.66871,2725.8,2725.2,5.4641879]
[1740067800654,3.66885,2725.7,2725.2,5.4641879]
[1740067800833,4.4203,2726.0,2725.4,3.66917]
[1740067801200,3.66832,2726.1,2725.5,3.7998]
[1740067801668,3.66865,2725.8,2725.5,0.7998]
[1740067801961,3.66865,2725.8,2725.5,2.05540958]
[1740067802369,3.66865,2725.8,2725.6,0.51353969]
[1740067803164,3.66865,2725.8,2725.6,2.08280593]
[1740067803366,3.66878,2725.7,2725.6,2.08280593]
[1740067803867,3.66878,2725.7,2725.6,1.56926624]
[1740067804263,4.402523,2725.7,2725.6,1.56926624]
[1740067804773,4.402523,2725.7,2725.6,2.281055]
[1740067805180,4.402523,2725.7,2725.6,2.4791723]
[1740067805485,4.402523,2725.7,2725.6,1.79725582]
[1740067806588,9.11126099,2725.7,2725.6,1.79725582]
[1740067806881,9.11126099,2725.7,2725.6,4.3e-06]
[1740067807386,9.09248099,2725.7,2725.4,6.24e-06]
[1740067807552,3.66945,2725.2,2725.1,7.76e-06]
[1740067807753,3.66945,2725.2,2725.0,0.89735996]
[1740067808158,3.66945,2725.2,2724.6,0.72982563]
[1740067808385,7.33957,2725.0,2724.6,0.72982563]
[1740067808580,3.66974,2725.0,2724.6,0.72982563]
[1740067808788,3.66992,2724.9,2724.6,0.72982563]
[1740067808989,3.66974,2725.0,2724.6,0.72982563]
[1740067809286,0.7637,2725.7,2724.8,1.3192]
[1740067809485,3.66906,2725.5,2724.9,3.66973]
[1740067810056,3.66879,2725.7,2724.9,3.66973]
[1740067810258,3.66892,2725.6,2725.0,3.66967]
[1740067810590,3.66905,2725.5,2725.1,0.73394]
[1740067811085,3.66905,2725.5,2725.1,1.38031779]
[1740067811392,3.66932,2725.3,2725.1,0.64637779]
[1740067811775,3.66945,2725.2,2725.1,0.64637779]
[1740067811976,3.66919,2725.4,2725.1,0.64637779]
[1740067812181,3.66934,2725.3,2725.2,0.86551328]
[1740067812921,5.176793,2725.3,2725.2,0.86551328]
[1740067813960,9.10993099,2725.3,2725.2,0.86551328]
[1740067814261,9.10243099,2725.3,2725.2,0.86551328]
[1740067814773,9.10993099,2725.3,2725.2,1.72e-06]
[1740067815793,3.66999,2724.8,2724.6,0.32909623]
[1740067816089,3.67034,2724.6,2724.4,0.7403679]
[1740067816290,3.67007,2724.8,2724.4,0.7403679]
[1740067816892,4.1871693,2725.2,2724.4,0.7403679]
[1740067817080,3.67039,2724.5,2724.4,0.7403679]
[1740067817497,3.67033,2724.6,2724.4,0.7403679]
[1740067817699,3.67008,2724.8,2724.4,0.7403679]
[1740067817881,3.67013,2724.7,2724.4,0.7403679]
[1740067818087,3.67024,2724.7,2724.4,0.7403679]
[1740067818280,3.67033,2724.6,2724.4,0.7403679]
[1740067818469,3.67039,2724.5,2724.4,0.7403679]
[1740067819203,3.67033,2724.6,2724.4,0.7403679]
[1740067819406,3.67012,2724.8,2724.4,0.7403679]
[1740067819574,3.67019,2724.7,2724.4,1.21319893]
[1740067819776,3.66973,2725.0,2724.5,3.8187]
[1740067820179,4.45627,2725.5,2724.5,4.09285439]
[1740067820527,3.66932,2725.3,2724.5,4.09285439]
[1740067820733,3.66972,2725.0,2724.5,4.09285439]
[1740067820874,3.66972,2725.0,2724.5,5.01033082]
[1740067821074,3.66992,2724.9,2724.5,5.01033082]
[1740067821310,0.015,2725.3,2724.5,0.27415439]
[1740067821498,3.67039,2724.5,2724.4,0.93861889]
[1740067822005,0.7806,2725.2,2724.4,0.93861889]
[1740067822209,0.7806,2725.2,2724.6,0.51556339]
[1740067822409,3.66959,2725.1,2724.6,4.18575339]
[1740067822585,3.66974,2725.0,2724.6,1.00817552]
[1740067822791,3.66993,2724.9,2724.6,1.00817552]
[1740067822986,0.015,2725.3,2724.6,0.51556339]
[1740067823210,3.67012,2724.7,2724.6,0.51556339]
[1740067823508,3.66961,2725.1,2724.6,4.18577339]